Cogmind - Beta 16.1 @@@ ROGUE MODE // 2026.04.03 @ 12:23:18 Player: Minty Result: Destroyed by Q8-T7I(R) with Subdweller Beam Cannon Performance ------------- Evolutions (0) 0 Regions Visited (3) 600 Robots Destroyed (17) 85 Value Destroyed (475) 475 Prototype IDs (1) 20 Alien Tech Used (0) 0 Bonus (0) 0 TOTAL SCORE: 1180 Bonus ------- None Cogmind --------- Core Integrity 0/250 Matter 275/300 Energy 265/265 System Corruption 0% Temperature Cool (55) Movement Core (350) Ox6 Location -10/Subcaves Parts ------- > --- POWER (1) -------- Improved Ion Engine > --- PROPULSION (2) --- Subdweller Monowheel > --- UTILITY (2) ------ Small Storage Unit > --- WEAPON (2) ------- Advanced Beam Cannon Grenade Launcher > --- INVENTORY (8) ---- Improved Ion Engine Improved Ion Engine Trap Extractor (0/4) Trap Extractor (0/4) Advanced Beam Cannon Subdweller Machine Gun Grenade Launcher Peak State ------------ > --- POWER ------------ Improved Ion Engine > --- PROPULSION ------- Wheel Subdweller Monowheel > --- UTILITY ---------- Small Storage Unit > --- WEAPON ----------- Advanced Beam Cannon Advanced Beam Cannon > --- INVENTORY -------- Improved Ion Engine Improved Ion Engine Trap Extractor Trap Extractor Subdweller Machine Gun Grenade Launcher Grenade Launcher [Rating: 13] Favorites ----------- Power Improved Ion Engine Engine Improved Ion Engine Propulsion Light Treads Treads Light Treads Leg Aluminum Leg Wheel Wheel Utility Small Storage Unit Storage Small Storage Unit Protection Light Armor Plating Weapon Advanced Beam Cannon Energy Cannon Advanced Beam Cannon Ballistic Gun Light Assault Rifle Launcher Grenade Launcher Build | -11 -10 -10 -10 ------- Run | Yrd Mat Min Sub Slots Evolved . | . . . . Power . | . . . . Propulsion . | . . . . Utility . | . . . . Weapon . | . . . . Parts Attached 12 | . 7 . 5 Power 1 | . . . 1 Engine 1 | . . . 1 Core . | . . . . Reactor . | . . . . Propulsion 4 | . 2 . 2 Treads 2 | . 2 . . Leg . | . . . . Wheel 2 | . . . 2 Hover . | . . . . Flight . | . . . . Utility 1 | . 1 . . Device . | . . . . Storage . | . . . . Processor . | . . . . Hackware . | . . . . Protection 1 | . 1 . . Artifact . | . . . . Weapon 6 | . 4 . 2 Energy Gun . | . . . . Energy Cannon 4 | . 4 . . Ballistic Gun . | . . . . Ballistic Cannon . | . . . . Launcher 2 | . . . 2 Special Weapon . | . . . . Impact Weapon . | . . . . Slashing Weapon . | . . . . Piercing Weapon . | . . . . Special Melee Weapon . | . . . . Unidentified Prototypes 1 | . 1 . . Parts Lost 5 | . . 1 4 Power 1 | . . . 1 Propulsion 3 | . . . 3 Utility 1 | . . 1 . Weapon . | . . . . Highest Loss Streak 2 | . . 1 2 To Critical Strikes . | . . . . Average Backups 7 | . 7 8 7 Power 2 | . 2 3 2 Propulsion . | . 1 1 . Utility 1 | . 1 2 2 Weapon 2 | . 1 2 2 Tool/Special . | . . . . Unused Backups 16 | . 10 . 6 Power 6 | . 3 . 3 Propulsion 3 | . 3 . . Utility 3 | . 1 . 2 Weapon 4 | . 3 . 1 Tool/Special . | . . . . Average Slot Usage (%) 86 | . 94 98 80 Engine 14 | . 14 14 14 Treads 20 | . 22 28 16 Leg 1 | . 5 . . Wheel 3 | . . . 6 Storage 14 | . 14 14 14 Protection 4 | . 8 12 . Energy Cannon 25 | . 23 28 26 Ballistic Gun 1 | . 4 . . Launcher 1 | . . . 1 Peak Build Rating 13 | . 12 12 13 Average Rating 11 | . 10 11 11 On Entrance 8 | 6 6 12 11 Avg Prop Armor Cover (%) 5 | . . . 5 Naked Turns . | . . . . Heaviest Build 21 | 13 21 21 20 Greatest Support 40 | 20 40 40 40 Greatest Overweight (x) 1 | . . . 1 Average Overweight (x) . | . . . . Largest Inventory Capacity 8 | . 8 8 8 Average Capacity 8 | . 8 8 8 Most Carried 8 | . 8 8 8 Average Carried 7 | . 7 8 7 Final Capacity 8 | 8 8 8 8 Final Carried 8 | 6 8 8 7 Class Distribution -------------------- 100% | Mutant Dominant Class ---------------- Mutant | -10/Materials Mutant | -10/Mines Mutant | -10/Subcaves Resources | -11 -10 -10 -10 ----------- Run | Yrd Mat Min Sub Matter Collected 416 | 175 41 . 200 Remotely . | . . . . Salvage Created 315 | . 144 . 171 Parts 23 | . 7 . 16 Haulers Intercepted . | . . . . Recyclers Shooed . | . . . . Parts Field Recycled . | . . . . Retrieved Matter . | . . . . Parts Self-Destructed 3 | . . . 3 Prevented . | . . . . Parts Restored . | . . . . Kills | -11 -10 -10 -10 ------- Run | Yrd Mat Min Sub Combat Hostiles Destroyed 14 | . 4 . 10 Cannons 6 | . 3 . 3 AOE 7 | . . . 7 Classes Destroyed 5 | . 3 . 2 Turret 2 | . . . 2 Watcher 1 | . 1 . . Swarmer 5 | . 1 . 4 Grunt 4 | . 3 . 1 Subdweller 5 | . . . 5 Best Kill Streak 8 | . 3 . 8 Combat Bots Only 6 | . 3 . 6 Max Kills in Single Turn 3 | . 1 . 3 Gunslinging . | . . . . Exploded 3 | . . . 3 Melee . | . . . . Uniques/NPCs Destroyed . | . . . . Combat | -11 -10 -10 -10 -------- Run | Yrd Mat Min Sub Hostile Shots Fired 130 | . 70 9 51 Missed 42 | . 18 1 23 Hits 88 | . 52 8 28 Projectile 88 | . 52 8 28 AOE 1 | . . . 1 Critical Strikes 1 | . 1 . . Damage Taken 1138 | . 464 124 550 Core 270 | . 56 33 181 Absorbed by Shields . | . . . . Core Remaining (%) 100 | 100 . . . Volleys Fired 39 | . 13 3 23 Largest 2 | . 2 2 2 Hottest 136 | . 136 136 136 Shots Fired 78 | . 26 6 46 Gun . | . . . . Cannon 62 | . 26 6 30 Launcher 16 | . . . 16 Special . | . . . . Kinetic . | . . . . Thermal 62 | . 26 6 30 Explosive 16 | . . . 16 Electromagnetic . | . . . . Robot Hit Streak 7 | . 5 3 7 Robot Miss Streak 5 | . 4 5 2 Penetration Max . | . . . . Secondary Targets . | . . . . Shots Hit Robots 43 | . 16 4 23 Core Hits 35 | . 5 1 29 Critical Kills . | . . . . Critical Parts Destroyed . | . . . . Critical Strikes . | . . . . Melee Attacks . | . . . . Impact . | . . . . Slashing . | . . . . Piercing . | . . . . Sneak Attacks . | . . . . Combat Hostiles . | . . . . Follow-up Attacks . | . . . . Damage Inflicted 1720 | . 368 82 1270 Guns . | . . . . Cannons 842 | . 330 82 430 Explosions 840 | . . . 840 Melee . | . . . . Ramming 38 | . 38 . . Kinetic . | . . . . Thermal 842 | . 330 82 430 Explosive 840 | . . . 840 Electromagnetic . | . . . . Impact . | . . . . Slashing . | . . . . Piercing . | . . . . Highest Corruption . | . . . . Average Corruption . | . . . . Corruption Purged . | . . . . Corruption Blocked . | . . . . Overload Shots . | . . . . Overflow Damage 9 | . 1 . 8 Projectiles . | . . . . Explosions 8 | . . . 8 Melee 1 | . 1 . . Knockbacks . | . . . . Impact . | . . . . Kinetic . | . . . . Secondary . | . . . . Self-Inflicted Damage 32 | . . . 32 Shots 1 | . . . 1 Rammed 15 | . 15 . . Targets Rammed 15 | . 15 . . Kicked . | . . . . Crushed . | . . . . Highest Temperature 494 | . 494 288 132 Average Temperature 146 | . 194 156 48 Received Heat Transfer 333 | . 96 72 165 Effects 6 | . 6 . . Shutdowns 1 | . 1 . . Energy Bleed 2 | . 2 . . Interference 2 | . 2 . . Damage (minor) 1 | . 1 . . Siege Activations . | . . . . Martial Activations . | . . . . Shielding Activations . | . . . . Robots Disrupted . | . . . . Combat Hostiles . | . . . . Robots Corrupted 1 | . 1 . . Combat Hostiles 1 | . 1 . . Parts Fried . | . . . . Impact Corruptions 1 | . 1 . . Robots Melted . | . . . . Combat Hostiles . | . . . . Parts Melted 2 | . . . 2 Heat Transferred 1517 | . 592 148 777 Parts Sabotaged . | . . . . Parts Stolen . | . . . . Parts Stripped . | . . . . Power Chain Reactions . | . . . . Alert | -11 -10 -10 -10 ------- Run | Yrd Mat Min Sub Maximum Alert Level . | . . . . Low Security (%) 100 | . 100 100 . Level 1 . | . . . . Level 2 . | . . . . Level 3 . | . . . . Level 4 . | . . . . Level 5 . | . . . . High Security . | . . . . Max Security . | . . . . Peak Influence 93 | . 93 31 . Initial 31 | . . 31 . Average 26 | . 39 8 . Influence Increases 378 | . 153 15 210 Destroy 0b10 Robot/C 220 | . 80 . 140 Destroy 0b10 Robot/NC 5 | . 5 . . Destroy Leader 32 | . 22 . 10 Select Force Hacks 30 | . 30 . . Destroy Structure 1 | . 1 . . Lose Combat Pursuer 90 | . 15 15 60 Influence Decreases 288 | . 70 83 135 Entered New Map 60 | . . 52 8 Time Decay 208 | . 70 31 107 Lost Part 20 | . . . 20 Squads Dispatched 2 | . 2 . . Investigation 1 | . 1 . . Extermination . | . . . . Reinforcement 1 | . 1 . . Assault . | . . . . Garrison . | . . . . Intercept . | . . . . Searches Triggered . | . . . . Construction Impeded . | . . . . Haulers Reinforced . | . . . . Active Scanning Responses . | . . . . Cargo Convoy Interrupts . | . . . . Stealth | -11 -10 -10 -10 --------- Run | Yrd Mat Min Sub Distress Signals . | . . . . Communications Jammed . | . . . . Distress Signals . | . . . . Times Spotted 26 | . 12 2 12 Peak Tracking Total 6 | . 5 2 6 Tactical Retreats 3 | . 1 1 1 Traps | -11 -10 -10 -10 ------- Run | Yrd Mat Min Sub Traps Triggered . | . . . . Indirectly . | . . . . Trap Hack Attempts . | . . . . Triggered . | . . . . Disarmed . | . . . . Reprogrammed . | . . . . Reused . | . . . . Traps Extracted . | . . . . Installed . | . . . . Triggered . | . . . . Machines | -11 -10 -10 -10 ---------- Run | Yrd Mat Min Sub Machines Disabled 3 | . . . 3 Max in Single Turn 3 | . . . 3 Machines Repaired . | . . . . Machines Dismantled . | . . . . Machines Sabotaged . | . . . . Overloaded Fab Kills . | . . . . Hacking | -11 -10 -10 -10 --------- Run | Yrd Mat Min Sub Machines Accessed 1 | . 1 . . Terminals . | . . . . Fabricators . | . . . . Repair Stations . | . . . . Recycling Units 1 | . 1 . . Scanalyzers . | . . . . Garrison Access . | . . . . Total Hacks 6 | . 6 . . Successful 4 | . 4 . . Failed 2 | . 2 . . Catastrophic . | . . . . Database Lockouts . | . . . . Manual 1 | . 1 . . Terminals . | . . . . Fabricators . | . . . . Repair Stations . | . . . . Recycling Units 6 | . 6 . . Scanalyzers . | . . . . Garrison Access . | . . . . Terminal Hacks . | . . . . Fabricator Hacks . | . . . . Repair Station Hacks . | . . . . Recycling Unit Hacks 3 | . 3 . . Process 1 | . 1 . . Report Inventory 1 | . 1 . . Retrieve Matter 1 | . 1 . . Scanalyzer . | . . . . Garrison Access Hacks . | . . . . Unauthorized Hacks 1 | . 1 . . Terminals . | . . . . Fabricators . | . . . . Repair Stations . | . . . . Recycling Units 1 | . 1 . . Tunnel 1 | . 1 . . Scanalyzers . | . . . . Garrison Access . | . . . . Data Cores Recovered . | . . . . Used . | . . . . Hacking Detections 1 | . 1 . . Full Trace Events . | . . . . Feedback Events . | . . . . Feedback Blocked . | . . . . Robot Schematics Acquired . | . . . . Robots Built . | . . . . Authchips . | . . . . Time . | . . . . Total Robot Build Rating . | . . . . Part Schematics Acquired . | . . . . Parts Built . | . . . . Authchips . | . . . . Time . | . . . . Total Part Build Rating . | . . . . Part Studies Acquired . | . . . . Parts Repaired . | . . . . Time . | . . . . Parts Recycled . | . . . . Recycled Matter 2 | . 2 . . Retrieved Matter 2 | . 2 . . Retrieved Components . | . . . . Parts Scanalyzed . | . . . . Part Schematics Acquired . | . . . . Parts Damaged . | . . . . Bothacking | -11 -10 -10 -10 ------------ Run | Yrd Mat Min Sub Used RIF Installer . | . . . . Robots Hacked . | . . . . Non-combat . | . . . . Combat . | . . . . Robot Hacks Applied . | . . . . Relay Couplers Released . | . . . . Fabnet Peak Effective % . | . . . . Robots Rewired . | . . . . Allies Hacked . | . . . . Hacks Repelled . | . . . . Allies | -11 -10 -10 -10 -------- Run | Yrd Mat Min Sub Total Allies . | . . . . Largest Group . | . . . . Highest-Rated Group . | . . . . Highest-Rated Ally . | . . . . Total Orders . | . . . . Ally Attacks . | . . . . Total Damage . | . . . . Kills . | . . . . Allies Corrupted . | . . . . Allies Melted . | . . . . Intel | -11 -10 -10 -10 ------- Run | Yrd Mat Min Sub Active Infowar (turns) . | . . . . Robot Analysis Total . | . . . . Derelict Logs Recovered . | . . . . Drone Launches . | . . . . Drone Recoveries . | . . . . Exploration | -11 -10 -10 -10 ------------- Run | Yrd Mat Min Sub Turns Passed 998 | . 238 174 586 Spaces Moved 587 | 1 99 104 383 Core . | . . . . Treads 369 | . 69 104 196 Legs 31 | 1 30 . . Wheels 187 | . . . 187 Hover . | . . . . Flight . | . . . . Fastest Speed 95 | 120 120 160 95 Average Speed 137 | 120 147 160 128 Slowest Speed 160 | 120 160 160 160 Overloaded Moves . | . . . . Propulsion Burnouts . | . . . . Robots Hopped . | . . . . Potential Cave-ins . | . . . . Cave-ins Triggered . | . . . . Exploration Rate (%) 19 | 2 27 22 28 Regions Visited 3 Branch Regions 2 Pre-discovered Areas 2 | . 1 1 . Known Exits Taken . | . . . . Unknown Exits Taken 3 | 1 1 1 . Scrap Searched 2 | . . . 2 Spaces Dug . | . . . . Terrain Destroyed 19 | . . . 19 Melee . | . . . . Projectile . | . . . . AOE 19 | . . . 19 Terrain Rammed . | . . . . Walls Destroyed . | . . . . Machines Disabled . | . . . . Actions | -11 -10 -10 -10 --------- Run | Yrd Mat Min Sub Total 694 | . 159 106 429 Wait 24 | . 10 . 14 Move 584 | . 98 103 383 Hop . | . . . . Pick Up 9 | . 8 . 1 Fast Attach 2 | . 1 . 1 Attach 4 | . 2 . 2 Detach . | . . . . Swap 9 | . 4 . 5 Drop 8 | . 8 . . Fire 39 | . 13 3 23 Melee . | . . . . Ram . | . . . . Kick . | . . . . Crush 15 | . 15 . . Escape Stasis . | . . . . Rewire . | . . . . Trap . | . . . . Miscellaneous . | . . . . Route ------- -11/Scrapyard -10/Materials (discovered 2 exits: [*Min x2]) -10/Mines (discovered 2 exits: [*Mat] / [*Sub]) -10/Subcaves (discovered 1 exit: [*Rec]) History --------- Turn | Location | Event 1 | -11/Scrapyard | Discovered new exit (range 0) 1 | -11/Scrapyard | Entered Materials 1 | -10/Materials | Discovered new exit (range 15) 224 | -10/Materials | Discovered new exit (range 10) 239 | -10/Materials | Entered Mines 256 | -10/Mines | Learned location of Storage (-7) 313 | -10/Mines | Build established: Mutant 323 | -10/Mines | Discovered new exit (range 8) 366 | -10/Mines | Discovered new exit (range 11) 413 | -10/Mines | Entered Subcaves 628 | -10/Subcaves | A swath of the cavern ceiling suddenly collapsed 750 | -10/Subcaves | Core integrity fell below 50% 764 | -10/Subcaves | Discovered new exit (range 15) 940 | -10/Subcaves | Disturbed a concealed Subdweller 990 | -10/Subcaves | Core integrity fell below 20% 999 | -10/Subcaves | Destroyed by Q8-T7I(R) with Subdweller Beam Cannon Last Messages --------------- 00895_ Aluminum Leg fries itself beyond repair. 00899_ Acquired 50 matter. 00901_ Acquired 57 matter. 00930_ Searching scrap... 00930_ Found Sub. Monowheel. 00930_ Found 45 Matter. 00931_ Acquired 45 matter. 00931_ Searching scrap... 00931_ Found Mak. Flight Unit. 00931_ Found 49 Matter. 00932_ Acquired 28 matter. 00935_ Acquired Sub. Monowheel. 00938_ Acquired 10 matter. 00940_ BV-4WD(R) angrily emerges from the Twisted Machinery. 00943_ BV-4WD(R): "SUBSUUUUUB!" 00943_ Subatomizers dissect the Mak. Flight Unit. 00953_ BV-4WD(R) destroyed. 00990_ Q8-T7I(R) heat damages Sub. Optics. 00995_ Wheel destroyed. 00997_ 4D-969(R) destroyed. Map ----- +----------------------------------------------------+ | ??????????????????????????????????????????????? | | ?????????????????????????????????????????????????? | | ?????????????????????????????????????????????????? | | ?????????????????????????????????????????????????? | | ?????????????????????????????????????????????????? | | ?????????????????????????????????????????????????? | | ??????????????????????????????????????????????## ? | | ?????????????????????????????????????????????? | | ?????????????????????????????????????????????? | | ?????????????????????????????????????????????? | | ?????????????????????????????????????????????? | | ?????????????????????????????????????????????? # | | ???????????????? ??????????????????????####### # | | ????????????????? ????????????????????#"&!="# # | | ??????????????? " " ????????????????#&## %# | | ???????????????# "" " "????????????????#%|#### | | ???????????????#" " #???????????????##[&## | | ???????????????"" ""???????????????##&## | | ???????????????"" #??????????????#"=" #? | | ???????????????"" ##????????????# ## | | ??????????????? "" R #???????###### # | | ??????????????? "" %& ######### | | ???????????????? "" = # # # # | | ??????????????? "" | | ????????????????# # ## | | ??????????????????????# @ ### ### ##? | | ??????????????????????##;###?####?## ##### ##?? | | ???????????????????????# ??????????#####???####??? | | ???????????????????????#?????????????????????????? | | ?????????????????????????????????????????????????? | | ?????????????????????????????????????????????????? | | ?????????????????????????????????????????????????? | | ?????????????????????????????????????????????????? | | ?????????????????????????????????????????????????? | | ?????????????????????????????????????????????????? | | ?????????????????????????????????????????????????? | | ?????????????????????????????????????????????????? | | ?????????????????????????????????????????????????? | | ?????????????????????????????????????????????????? | | ?????????????????????????????????????????????????? | | ?????????????????????????????????????????????????? | | ?????????????????????????????????????????????????? | | | | | | | | | | | | | | | | | +----------------------------------------------------+ Best States ------------- Heat Dissipation 25 Energy Generation 12 Energy Capacity 265 Matter Stores 300 Matter Capacity 300 Sight Range 16 Terrain Scan Density 10 Armor Coverage 150 Evasion (%) 55 Recoil Reduction 2 Item Schematics ----------------- None Robot Schematics ------------------ None Fabricated ------------ Nothing Repaired ---------- Nothing Studied --------- None Alien Tech Used ----------------- None Achievements -------------- None Challenges ------------ None Game ------ Seed ShieldElectronTriangulator Manual? 0 Play Time 00:05:29 Cumulative 1296.6 hours Start 2026.04.03 @ 12:17:50 End 2026.04.03 @ 12:23:18 Sessions 1 Manual Loads 0 Difficulty Rogue Special Mode None Game No. 1592 Rogue 1308 Adventurer 124 Explorer 160 Win Type - Total 63 Types 49/0/8/4/1/0/0/1/0/0 Lore% 93 Gallery% 84 Achievement% 70 Wizard Run 0 Options --------- Layout 0 ASCII 0 Keyboard 1 Movement Numpad Keybinds 0 Fullscreen 2 Font 18/X11 Map View 76x50 Zoom Use 0% Tactical HUD 1 Map Filters NONE Filters NONE Steam 1 RUN: 960488cd-fe2b-4698-a84c-2fc92e3150c9